[Event "Titled Tuesday Blitz May 10 Late 2022"]
[White "Boruchovsky, Avital"]
[Black "Wachinger, Guenther"]
[WhiteFideId "2800055"]
[BlackFideId "4604261"]
[WhiteElo "2469"]
[BlackElo "2212"]
[Result "1-0"]
[Round "02"]
[TimeControl "180+1"]
[Date "2022.05.11"]
[WhiteClock "0:01:24"]
[BlackClock "0:00:05"]

1. d4 {[%clk 0:03:00]}  Nf6 {[%clk 0:00:12]} 2. Nd2 {[%clk 0:02:57]}  d5 {[%clk 0:00:12]} 3. Ngf3 {[%clk 0:02:56]}  g6 {[%clk 0:00:11]} 4. e3 {[%clk 0:02:56]}  Bg7 {[%clk 0:00:11]} 5. c4 {[%clk 0:02:57]}  c6 {[%clk 0:00:11]} 6. cxd5 {[%clk 0:02:57]}  cxd5 {[%clk 0:00:10]} 7. Bb5+ {[%clk 0:02:58]}  Bd7 {[%clk 0:00:10]} 8. Bd3 {[%clk 0:02:58]}  O-O {[%clk 0:00:10]} 9. Ne5 {[%clk 0:02:58]}  Nc6 {[%clk 0:00:10]} 10. Ndf3 {[%clk 0:02:57]}  Bf5 {[%clk 0:00:09]} 11. Bxf5 {[%clk 0:02:56]}  gxf5 {[%clk 0:00:10]} 12. Nxc6 {[%clk 0:02:56]}  bxc6 {[%clk 0:00:10]} 13. O-O {[%clk 0:02:56]}  Ne4 {[%clk 0:00:10]} 14. Bd2 {[%clk 0:02:57]}  Rb8 {[%clk 0:00:10]} 15. Qc2 {[%clk 0:02:57]}  Qd6 {[%clk 0:00:10]} 16. Rac1 {[%clk 0:02:56]}  Rfc8 {[%clk 0:00:10]} 17. b3 {[%clk 0:02:49]}  c5 {[%clk 0:00:09]} 18. Qd3 {[%clk 0:02:49]}  cxd4 {[%clk 0:00:04]} 19. Nxd4 {[%clk 0:02:49]}  e6 {[%clk 0:00:04]} 20. Nb5 {[%clk 0:02:27]}  Qb6 {[%clk 0:00:04]} 21. Nd4 {[%clk 0:02:14]}  Qd6 {[%clk 0:00:03]} 22. f3 {[%clk 0:02:11]}  Nxd2 {[%clk 0:00:03]} 23. Qxd2 {[%clk 0:02:12]}  Qb6 {[%clk 0:00:03]} 24. Ne2 {[%clk 0:01:59]}  Bf6 {[%clk 0:00:03]} 25. Rxc8+ {[%clk 0:01:56]}  Rxc8 {[%clk 0:00:04]} 26. Rc1 {[%clk 0:01:56]}  Rxc1+ {[%clk 0:00:04]} 27. Qxc1 {[%clk 0:01:57]}  Bg5 {[%clk 0:00:04]} 28. f4 {[%clk 0:01:54]}  Bf6 {[%clk 0:00:04]} 29. Kf2 {[%clk 0:01:53]}  d4 {[%clk 0:00:04]} 30. exd4 {[%clk 0:01:48]}  Bxd4+ {[%clk 0:00:05]} 31. Kf3 {[%clk 0:01:47]}  Bf6 {[%clk 0:00:04]} 32. Qc8+ {[%clk 0:01:40]}  Kg7 {[%clk 0:00:04]} 33. Ng3 {[%clk 0:01:40]}  Qb5 {[%clk 0:00:04]} 34. Nh5+ {[%clk 0:01:28]}  Kh6 {[%clk 0:00:05]} 35. Qf8+ {[%clk 0:01:24]}  Kxh5 {[%clk 0:00:04]} 36. Qxf7+ {[%clk 0:01:24]}  Kh6 {[%clk 0:00:04]} 37. Qxf6+ {[%clk 0:01:24]}  Kh5 {[%clk 0:00:05]} 38. Qg5# {[%clk 0:01:24]} 1-0


[Site "https://www.chess.com"]

[Event "Titled Tuesday Blitz May 10 Late 2022"]
[White "Cilek, Bora"]
[Black "Bakalchuk, Johnatan"]
[WhiteFideId "34502165"]
[BlackFideId "2810301"]
[WhiteElo "2440"]
[BlackElo "2486"]
[Result "0-1"]
[Round "02"]
[TimeControl "180+1"]
[Date "2022.05.11"]
[WhiteClock "0:00:02"]
[BlackClock "0:00:04"]

1. Nf3 {[%clk 0:03:00]}  Nf6 {[%clk 0:02:58]} 2. g3 {[%clk 0:03:01]}  g6 {[%clk 0:02:57]} 3. Bg2 {[%clk 0:03:01]}  Bg7 {[%clk 0:02:58]} 4. O-O {[%clk 0:03:01]}  O-O {[%clk 0:02:58]} 5. d4 {[%clk 0:03:02]}  d6 {[%clk 0:02:58]} 6. c4 {[%clk 0:03:03]}  Nc6 {[%clk 0:02:57]} 7. Nc3 {[%clk 0:03:02]}  a6 {[%clk 0:02:58]} 8. Bf4 {[%clk 0:03:02]}  h6 {[%clk 0:02:54]} 9. h3 {[%clk 0:03:01]}  Rb8 {[%clk 0:02:47]} 10. Rc1 {[%clk 0:03:00]}  g5 {[%clk 0:02:41]} 11. Bd2 {[%clk 0:02:59]}  e5 {[%clk 0:02:34]} 12. d5 {[%clk 0:02:26]}  Ne7 {[%clk 0:02:34]} 13. e4 {[%clk 0:02:26]}  b5 {[%clk 0:02:29]} 14. cxb5 {[%clk 0:02:23]}  axb5 {[%clk 0:02:30]} 15. b4 {[%clk 0:02:23]}  c6 {[%clk 0:02:26]} 16. dxc6 {[%clk 0:02:17]}  Nxc6 {[%clk 0:02:27]} 17. a3 {[%clk 0:01:56]}  g4 {[%clk 0:02:25]} 18. hxg4 {[%clk 0:01:55]}  Bxg4 {[%clk 0:02:25]} 19. Be3 {[%clk 0:01:47]}  Re8 {[%clk 0:02:13]} 20. Qd2 {[%clk 0:01:43]}  Bxf3 {[%clk 0:02:12]} 21. Bxf3 {[%clk 0:01:42]}  Nd4 {[%clk 0:02:13]} 22. Bd1 {[%clk 0:01:25]}  d5 {[%clk 0:02:13]} 23. Nxd5 {[%clk 0:01:10]}  Nxe4 {[%clk 0:01:49]} 24. Qa2 {[%clk 0:01:09]}  Qd7 {[%clk 0:01:50]} 25. Rc7 {[%clk 0:00:59]}  Qe6 {[%clk 0:01:40]} 26. Bxd4 {[%clk 0:00:56]}  exd4 {[%clk 0:01:39]} 27. Bb3 {[%clk 0:00:56]}  Kh8 {[%clk 0:01:28]} 28. Nf4 {[%clk 0:00:46]}  Qg4 {[%clk 0:01:08]} 29. Kg2 {[%clk 0:00:32]}  Ng5 {[%clk 0:00:51]} 30. Bd1 {[%clk 0:00:28]}  Qf5 {[%clk 0:00:46]} 31. Qc2 {[%clk 0:00:18]}  Qe5 {[%clk 0:00:37]} 32. Rc5 {[%clk 0:00:15]}  Qe7 {[%clk 0:00:31]} 33. Qd3 {[%clk 0:00:15]}  Rbc8 {[%clk 0:00:21]} 34. Rxg5 {[%clk 0:00:10]}  Qxg5 {[%clk 0:00:16]} 35. Bc2 {[%clk 0:00:08]}  Kg8 {[%clk 0:00:17]} 36. Rh1 {[%clk 0:00:05]}  Rc3 {[%clk 0:00:12]} 37. Qh7+ {[%clk 0:00:05]}  Kf8 {[%clk 0:00:13]} 38. Rh5 {[%clk 0:00:06]}  Qf6 {[%clk 0:00:10]} 39. Rd5 {[%clk 0:00:03]}  Qc6 {[%clk 0:00:07]} 40. Be4 {[%clk 0:00:02]}  d3 {[%clk 0:00:04]} 0-1


[Site "https://www.chess.com"]

[Event "Titled Tuesday Blitz May 10 Late 2022"]
[White "Curtis, John"]
[Black "Niemann, Hans Moke"]
[WhiteFideId "3200256"]
[BlackFideId "2093596"]
[WhiteElo "2203"]
[BlackElo "2632"]
[Result "1-0"]
[Round "02"]
[TimeControl "180+1"]
[Date "2022.05.11"]
[WhiteClock "0:00:46"]
[BlackClock "0:01:55"]

1. e4 {[%clk 0:03:00]}  c5 {[%clk 0:02:57]} 2. Nf3 {[%clk 0:03:00]}  Nc6 {[%clk 0:02:56]} 3. d4 {[%clk 0:03:00]}  cxd4 {[%clk 0:02:57]} 4. Nxd4 {[%clk 0:03:00]}  Nf6 {[%clk 0:02:58]} 5. Nc3 {[%clk 0:02:59]}  g6 {[%clk 0:02:53]} 6. Be2 {[%clk 0:02:54]}  Bg7 {[%clk 0:02:53]} 7. O-O {[%clk 0:02:54]}  O-O {[%clk 0:02:51]} 8. Be3 {[%clk 0:02:51]}  d6 {[%clk 0:02:51]} 9. Qd2 {[%clk 0:02:47]}  Bd7 {[%clk 0:02:49]} 10. Rad1 {[%clk 0:02:45]}  Rc8 {[%clk 0:02:48]} 11. Nxc6 {[%clk 0:02:32]}  Bxc6 {[%clk 0:02:47]} 12. f3 {[%clk 0:02:31]}  a6 {[%clk 0:02:42]} 13. Kh1 {[%clk 0:02:28]}  Qa5 {[%clk 0:02:41]} 14. Nd5 {[%clk 0:02:19]}  Nxd5 {[%clk 0:02:37]} 15. Qxa5 {[%clk 0:02:18]}  Nxe3 {[%clk 0:02:36]} 16. c3 {[%clk 0:02:13]}  Nxf1 {[%clk 0:02:35]} 17. Bxf1 {[%clk 0:02:13]}  Kh8 {[%clk 0:02:35]} 18. h3 {[%clk 0:02:08]}  f5 {[%clk 0:02:34]} 19. Bd3 {[%clk 0:01:58]}  fxe4 {[%clk 0:02:33]} 20. Bxe4 {[%clk 0:01:58]}  Bxe4 {[%clk 0:02:33]} 21. fxe4 {[%clk 0:01:58]}  Rf2 {[%clk 0:02:34]} 22. Qb6 {[%clk 0:01:54]}  Rcf8 {[%clk 0:02:31]} 23. Qxb7 {[%clk 0:01:53]}  Be5 {[%clk 0:02:31]} 24. Rg1 {[%clk 0:01:41]}  R8f7 {[%clk 0:02:27]} 25. Qxa6 {[%clk 0:01:26]}  Rxb2 {[%clk 0:02:26]} 26. Rf1 {[%clk 0:01:24]}  Rff2 {[%clk 0:02:09]} 27. Rxf2 {[%clk 0:01:15]}  Rxf2 {[%clk 0:02:10]} 28. g4 {[%clk 0:00:55]}  Rh2+ {[%clk 0:02:05]} 29. Kg1 {[%clk 0:00:55]}  Rxh3 {[%clk 0:02:06]} 30. a4 {[%clk 0:00:54]}  Rxc3 {[%clk 0:02:05]} 31. a5 {[%clk 0:00:53]}  Ra3 {[%clk 0:02:05]} 32. Qb6 {[%clk 0:00:48]}  Kg7 {[%clk 0:01:54]} 33. a6 {[%clk 0:00:48]}  Ra4 {[%clk 0:01:54]} 34. a7 {[%clk 0:00:47]}  Bd4+ {[%clk 0:01:54]} 35. Qxd4+ {[%clk 0:00:47]}  Rxd4 {[%clk 0:01:55]} 36. a8=Q {[%clk 0:00:47]}  Kf6 {[%clk 0:01:55]} 37. Qh8+ {[%clk 0:00:46]} 1-0


[Site "https://www.chess.com"]

[Event "Titled Tuesday Blitz May 10 Late 2022"]
[White "Della Morte, German"]
[Black "Dreev, Aleksey"]
[WhiteFideId "113522"]
[BlackFideId "4100107"]
[WhiteElo "2363"]
[BlackElo "2625"]
[Result "0-1"]
[Round "02"]
[TimeControl "180+1"]
[Date "2022.05.10"]
[WhiteClock "0:00:02"]
[BlackClock "0:00:09"]

1. e4 {[%clk 0:03:00]}  c5 {[%clk 0:02:59]} 2. Nf3 {[%clk 0:03:00]}  e6 {[%clk 0:02:59]} 3. d4 {[%clk 0:03:00]}  cxd4 {[%clk 0:02:59]} 4. Nxd4 {[%clk 0:03:01]}  Nf6 {[%clk 0:03:00]} 5. Nc3 {[%clk 0:03:01]}  Nc6 {[%clk 0:03:01]} 6. Ndb5 {[%clk 0:03:00]}  Bc5 {[%clk 0:02:59]} 7. Bf4 {[%clk 0:02:43]}  O-O {[%clk 0:02:58]} 8. Bc7 {[%clk 0:02:42]}  Qe7 {[%clk 0:02:57]} 9. Bd6 {[%clk 0:02:43]}  Bxd6 {[%clk 0:02:57]} 10. Qxd6 {[%clk 0:02:43]}  Qd8 {[%clk 0:02:57]} 11. O-O-O {[%clk 0:02:39]}  a6 {[%clk 0:02:57]} 12. Nd4 {[%clk 0:02:39]}  Ne7 {[%clk 0:02:58]} 13. f3 {[%clk 0:02:34]}  b5 {[%clk 0:02:57]} 14. g4 {[%clk 0:02:34]}  Ne8 {[%clk 0:02:48]} 15. Qg3 {[%clk 0:02:31]}  b4 {[%clk 0:02:48]} 16. Na4 {[%clk 0:02:30]}  Qa5 {[%clk 0:02:39]} 17. b3 {[%clk 0:02:29]}  d5 {[%clk 0:02:38]} 18. e5 {[%clk 0:02:20]}  Bd7 {[%clk 0:02:37]} 19. Kb1 {[%clk 0:02:10]}  Bxa4 {[%clk 0:02:37]} 20. bxa4 {[%clk 0:02:11]}  Qxa4 {[%clk 0:02:34]} 21. f4 {[%clk 0:02:11]}  Nc7 {[%clk 0:02:29]} 22. f5 {[%clk 0:01:55]}  Nb5 {[%clk 0:02:20]} 23. Bxb5 {[%clk 0:01:55]}  axb5 {[%clk 0:02:20]} 24. Qb3 {[%clk 0:01:55]}  Ra6 {[%clk 0:02:16]} 25. Qxa4 {[%clk 0:01:14]}  bxa4 {[%clk 0:02:15]} 26. Rhf1 {[%clk 0:01:14]}  Rc8 {[%clk 0:02:09]} 27. Rf4 {[%clk 0:01:08]}  g5 {[%clk 0:01:50]} 28. Rf3 {[%clk 0:01:03]}  Rc4 {[%clk 0:01:50]} 29. fxe6 {[%clk 0:01:03]}  fxe6 {[%clk 0:01:50]} 30. Rf6 {[%clk 0:01:03]}  Ng6 {[%clk 0:01:41]} 31. Nxe6 {[%clk 0:00:59]}  Rcc6 {[%clk 0:01:40]} 32. Nxg5 {[%clk 0:00:59]}  Rxf6 {[%clk 0:01:40]} 33. exf6 {[%clk 0:01:00]}  Rxf6 {[%clk 0:01:41]} 34. Rxd5 {[%clk 0:01:00]}  a3 {[%clk 0:01:27]} 35. Rf5 {[%clk 0:01:00]}  Rd6 {[%clk 0:01:24]} 36. Kc1 {[%clk 0:01:00]}  Ne7 {[%clk 0:01:22]} 37. Rb5 {[%clk 0:00:55]}  Nd5 {[%clk 0:00:59]} 38. Ne4 {[%clk 0:00:55]}  Re6 {[%clk 0:01:00]} 39. Rxd5 {[%clk 0:00:44]}  Rxe4 {[%clk 0:00:59]} 40. h3 {[%clk 0:00:33]}  Kg7 {[%clk 0:00:54]} 41. Kd2 {[%clk 0:00:32]}  Rf4 {[%clk 0:00:55]} 42. Re5 {[%clk 0:00:28]}  Kg6 {[%clk 0:00:52]} 43. Kd3 {[%clk 0:00:22]}  h6 {[%clk 0:00:40]} 44. Re4 {[%clk 0:00:21]}  Rf3+ {[%clk 0:00:40]} 45. Re3 {[%clk 0:00:21]}  Rf4 {[%clk 0:00:40]} 46. Re4 {[%clk 0:00:18]}  Rf3+ {[%clk 0:00:40]} 47. Ke2 {[%clk 0:00:19]}  Rxh3 {[%clk 0:00:34]} 48. Rxb4 {[%clk 0:00:19]}  Kg5 {[%clk 0:00:34]} 49. Ra4 {[%clk 0:00:15]}  Rg3 {[%clk 0:00:31]} 50. Kd2 {[%clk 0:00:04]}  Rf3 {[%clk 0:00:31]} 51. c4 {[%clk 0:00:04]}  Rf2+ {[%clk 0:00:30]} 52. Kd3 {[%clk 0:00:05]}  Rxa2 {[%clk 0:00:31]} 53. c5 {[%clk 0:00:05]}  Ra1 {[%clk 0:00:30]} 54. c6 {[%clk 0:00:06]}  Rc1 {[%clk 0:00:28]} 55. Rxa3 {[%clk 0:00:06]}  Rxc6 {[%clk 0:00:28]} 56. Ra4 {[%clk 0:00:06]}  Re6 {[%clk 0:00:28]} 57. Kd2 {[%clk 0:00:06]}  Re5 {[%clk 0:00:22]} 58. Kd3 {[%clk 0:00:06]}  Re1 {[%clk 0:00:22]} 59. Kd2 {[%clk 0:00:06]}  Re6 {[%clk 0:00:19]} 60. Kd3 {[%clk 0:00:07]}  Kh4 {[%clk 0:00:20]} 61. Kd2 {[%clk 0:00:06]}  Kg3 {[%clk 0:00:20]} 62. Kd3 {[%clk 0:00:06]}  Kf3 {[%clk 0:00:18]} 63. Kd2 {[%clk 0:00:06]}  Re5 {[%clk 0:00:12]} 64. Rb4 {[%clk 0:00:05]}  Re6 {[%clk 0:00:11]} 65. Ra4 {[%clk 0:00:05]}  Kg3 {[%clk 0:00:11]} 66. Kd3 {[%clk 0:00:05]}  Kf2 {[%clk 0:00:12]} 67. Rb4 {[%clk 0:00:04]}  Kf3 {[%clk 0:00:12]} 68. Kd2 {[%clk 0:00:04]}  Re2+ {[%clk 0:00:11]} 69. Kd1 {[%clk 0:00:04]}  Rg2 {[%clk 0:00:11]} 70. Ke1 {[%clk 0:00:04]}  Rg1+ {[%clk 0:00:11]} 71. Kd2 {[%clk 0:00:04]}  Rg2+ {[%clk 0:00:11]} 72. Ke1 {[%clk 0:00:04]}  Rg1+ {[%clk 0:00:11]} 73. Kd2 {[%clk 0:00:04]}  Kg3 {[%clk 0:00:12]} 74. Ke2 {[%clk 0:00:04]}  Rh1 {[%clk 0:00:11]} 75. Ke3 {[%clk 0:00:04]}  Re1+ {[%clk 0:00:11]} 76. Kd2 {[%clk 0:00:05]}  Re6 {[%clk 0:00:11]} 77. Kd3 {[%clk 0:00:05]}  Kf2 {[%clk 0:00:10]} 78. Ra4 {[%clk 0:00:04]}  Rd6+ {[%clk 0:00:10]} 79. Ke4 {[%clk 0:00:04]}  Rf6 {[%clk 0:00:10]} 80. Ra5 {[%clk 0:00:03]}  Kg3 {[%clk 0:00:09]} 81. Rf5 {[%clk 0:00:02]}  Rg6 {[%clk 0:00:09]} 0-1


[Site "https://www.chess.com"]

[Event "Titled Tuesday Blitz May 10 Late 2022"]
[White "Demchenko, Anton"]
[Black "Peralta, Eduardo"]
[WhiteFideId "4160258"]
[BlackFideId "3700062"]
[WhiteElo "2539"]
[BlackElo "2125"]
[Result "1-0"]
[Round "02"]
[TimeControl "180+1"]
[Date "2022.05.10"]
[WhiteClock "0:01:23"]
[BlackClock "0:00:58"]

1. e4 {[%clk 0:02:56]}  c5 {[%clk 0:02:59]} 2. Nf3 {[%clk 0:02:55]}  Nc6 {[%clk 0:03:00]} 3. Bb5 {[%clk 0:02:55]}  g6 {[%clk 0:03:00]} 4. O-O {[%clk 0:02:55]}  Bg7 {[%clk 0:03:01]} 5. d3 {[%clk 0:02:56]}  Nf6 {[%clk 0:03:01]} 6. Nc3 {[%clk 0:02:56]}  O-O {[%clk 0:03:01]} 7. e5 {[%clk 0:02:56]}  Ne8 {[%clk 0:02:58]} 8. Bxc6 {[%clk 0:02:57]}  bxc6 {[%clk 0:02:55]} 9. Re1 {[%clk 0:02:57]}  Nc7 {[%clk 0:02:54]} 10. Ne4 {[%clk 0:02:55]}  Ne6 {[%clk 0:02:53]} 11. b3 {[%clk 0:02:50]}  d5 {[%clk 0:02:43]} 12. Ng3 {[%clk 0:02:46]}  Ba6 {[%clk 0:02:39]} 13. c4 {[%clk 0:02:44]}  Bc8 {[%clk 0:02:27]} 14. Ng5 {[%clk 0:02:38]}  a5 {[%clk 0:02:25]} 15. a4 {[%clk 0:02:37]}  Rb8 {[%clk 0:02:24]} 16. Nxe6 {[%clk 0:02:37]}  Bxe6 {[%clk 0:02:24]} 17. Rb1 {[%clk 0:02:31]}  dxc4 {[%clk 0:02:21]} 18. dxc4 {[%clk 0:02:19]}  Qxd1 {[%clk 0:02:17]} 19. Rxd1 {[%clk 0:02:20]}  Bxc4 {[%clk 0:02:16]} 20. Bf4 {[%clk 0:02:13]}  Bxb3 {[%clk 0:02:08]} 21. Rdc1 {[%clk 0:02:09]}  c4 {[%clk 0:02:06]} 22. Ne4 {[%clk 0:02:07]}  Rfd8 {[%clk 0:01:44]} 23. f3 {[%clk 0:02:06]}  Rd5 {[%clk 0:01:41]} 24. e6 {[%clk 0:02:04]}  Rbd8 {[%clk 0:01:38]} 25. exf7+ {[%clk 0:02:01]}  Kxf7 {[%clk 0:01:38]} 26. Ng5+ {[%clk 0:02:02]}  Kg8 {[%clk 0:01:37]} 27. Ne6 {[%clk 0:02:02]}  Rd1+ {[%clk 0:01:33]} 28. Kf2 {[%clk 0:01:56]}  Rxc1 {[%clk 0:01:33]} 29. Rxc1 {[%clk 0:01:54]}  Rd1 {[%clk 0:01:32]} 30. Nxg7 {[%clk 0:01:49]}  Rxc1 {[%clk 0:01:29]} 31. Bxc1 {[%clk 0:01:49]}  Kxg7 {[%clk 0:01:29]} 32. Bd2 {[%clk 0:01:49]}  Bxa4 {[%clk 0:01:29]} 33. Bxa5 {[%clk 0:01:50]}  Kf6 {[%clk 0:01:29]} 34. Ke3 {[%clk 0:01:49]}  Ke5 {[%clk 0:01:29]} 35. Bc3+ {[%clk 0:01:49]}  Kd5 {[%clk 0:01:29]} 36. Kf4 {[%clk 0:01:44]}  Bc2 {[%clk 0:01:19]} 37. h4 {[%clk 0:01:27]}  Kc5 {[%clk 0:01:18]} 38. Ke3 {[%clk 0:01:22]}  Bd3 {[%clk 0:01:15]} 39. g4 {[%clk 0:01:05]}  Kb5 {[%clk 0:01:15]} 40. h5 {[%clk 0:01:03]}  gxh5 {[%clk 0:01:14]} 41. gxh5 {[%clk 0:01:04]}  Ka4 {[%clk 0:01:14]} 42. h6 {[%clk 0:01:04]}  Kb3 {[%clk 0:01:12]} 43. Kd2 {[%clk 0:01:04]}  Bg6 {[%clk 0:01:07]} 44. f4 {[%clk 0:01:05]}  Bf5 {[%clk 0:01:07]} 45. Be5 {[%clk 0:01:05]}  Kb4 {[%clk 0:01:06]} 46. Bc3+ {[%clk 0:01:06]}  Kc5 {[%clk 0:01:06]} 47. Ke3 {[%clk 0:01:06]}  Kd5 {[%clk 0:01:06]} 48. Be5 {[%clk 0:01:06]}  Ke6 {[%clk 0:01:06]} 49. Kd4 {[%clk 0:01:03]}  Bd3 {[%clk 0:01:06]} 50. Kc3 {[%clk 0:01:00]}  Kf5 {[%clk 0:01:06]} 51. Kd4 {[%clk 0:00:59]}  Kg4 {[%clk 0:01:06]} 52. Kc3 {[%clk 0:00:58]}  c5 {[%clk 0:01:06]} 53. Kd2 {[%clk 0:00:57]}  Bf5 {[%clk 0:01:03]} 54. Kc3 {[%clk 0:00:57]}  Be6 {[%clk 0:01:01]} 55. Kd2 {[%clk 0:00:57]}  Kh5 {[%clk 0:01:01]} 56. Bg7 {[%clk 0:00:57]}  Kg6 {[%clk 0:01:01]} 57. Kc3 {[%clk 0:00:57]}  Bd5 {[%clk 0:01:02]} 58. Kd2 {[%clk 0:00:57]}  Kf5 {[%clk 0:01:01]} 59. Be5 {[%clk 0:00:57]}  Ke6 {[%clk 0:01:01]} 60. Kc3 {[%clk 0:00:56]}  Kd7 {[%clk 0:01:01]} 61. Kd2 {[%clk 0:00:57]}  Be6 {[%clk 0:01:01]} 62. Kc3 {[%clk 0:00:57]}  Kc6 {[%clk 0:01:02]} 63. Kd2 {[%clk 0:00:56]}  Kd5 {[%clk 0:01:02]} 64. Kc3 {[%clk 0:00:57]}  Bh3 {[%clk 0:01:01]} 65. Kd2 {[%clk 0:00:57]}  Ke4 {[%clk 0:01:00]} 66. Kc3 {[%clk 0:00:57]}  Bf1 {[%clk 0:01:00]} 67. Kd2 {[%clk 0:00:57]}  Bd3 {[%clk 0:00:59]} 68. Kc3 {[%clk 0:00:57]}  Ke3 {[%clk 0:00:59]} 69. Bc7 {[%clk 0:00:51]}  Bf1 {[%clk 0:00:58]} 70. f5 {[%clk 0:00:37]}  Ke4 {[%clk 0:00:54]} 71. Bd8 {[%clk 0:00:37]}  Kxf5 {[%clk 0:00:48]} 72. Bxe7 {[%clk 0:00:38]}  Kg6 {[%clk 0:00:45]} 73. Bf8 {[%clk 0:00:39]}  Kh5 {[%clk 0:00:45]} 74. Bg7 {[%clk 0:00:38]}  Bd3 {[%clk 0:00:45]} 75. Kd2 {[%clk 0:00:38]}  Bg6 {[%clk 0:00:43]} 76. Bf8 {[%clk 0:00:38]}  Bf7 {[%clk 0:00:44]} 77. Bg7 {[%clk 0:00:39]}  Kg6 {[%clk 0:00:44]} 78. Bf8 {[%clk 0:00:39]}  Kf5 {[%clk 0:00:45]} 79. Bxc5 {[%clk 0:00:38]}  Ke6 {[%clk 0:00:46]} 80. Bf8 {[%clk 0:00:38]}  Kd5 {[%clk 0:00:46]} 81. Bg7 {[%clk 0:00:39]}  Kc6 {[%clk 0:00:47]} 82. Kc3 {[%clk 0:00:40]}  Kb5 {[%clk 0:00:47]} 83. Bf6 {[%clk 0:00:40]}  Bg6 {[%clk 0:00:48]} 84. Bg7 {[%clk 0:00:41]}  Ka4 {[%clk 0:00:49]} 85. Bf6 {[%clk 0:00:42]}  Bd3 {[%clk 0:00:48]} 86. Bg7 {[%clk 0:00:43]}  Kb5 {[%clk 0:00:49]} 87. Bf6 {[%clk 0:00:43]}  Kc6 {[%clk 0:00:49]} 88. Bg7 {[%clk 0:00:44]}  Bf1 {[%clk 0:00:49]} 89. Bf6 {[%clk 0:00:45]}  Kd5 {[%clk 0:00:49]} 90. Bg7 {[%clk 0:00:46]}  Ke4 {[%clk 0:00:49]} 91. Bf8 {[%clk 0:00:46]}  Kf3 {[%clk 0:00:50]} 92. Bg7 {[%clk 0:00:47]}  Kg2 {[%clk 0:00:50]} 93. Kd4 {[%clk 0:00:47]}  Kg3 {[%clk 0:00:50]} 94. Kc3 {[%clk 0:00:48]}  Kh4 {[%clk 0:00:50]} 95. Kd2 {[%clk 0:00:49]}  Bd3 {[%clk 0:00:49]} 96. Kc3 {[%clk 0:00:49]}  Kh3 {[%clk 0:00:49]} 97. Kd2 {[%clk 0:00:50]}  Kh2 {[%clk 0:00:49]} 98. Kc3 {[%clk 0:00:51]}  Kh1 {[%clk 0:00:49]} 99. Kd2 {[%clk 0:00:52]}  Kg1 {[%clk 0:00:50]} 100. Kc3 {[%clk 0:00:53]}  Kf1 {[%clk 0:00:50]} 101. Kd2 {[%clk 0:00:54]}  Kf2 {[%clk 0:00:50]} 102. Kc3 {[%clk 0:00:55]}  Ke1 {[%clk 0:00:51]} 103. Bf8 {[%clk 0:00:55]}  Kd1 {[%clk 0:00:51]} 104. Bg7 {[%clk 0:00:56]}  Kc1 {[%clk 0:00:51]} 105. Bf8 {[%clk 0:00:57]}  Kb1 {[%clk 0:00:52]} 106. Bg7 {[%clk 0:00:58]}  Ka2 {[%clk 0:00:52]} 107. Bf8 {[%clk 0:00:59]}  Bg6 {[%clk 0:00:50]} 108. Bg7 {[%clk 0:01:00]}  Bf7 {[%clk 0:00:49]} 109. Bf8 {[%clk 0:01:00]}  Bg8 {[%clk 0:00:50]} 110. Bg7 {[%clk 0:01:01]}  Ka3 {[%clk 0:00:50]} 111. Bf8+ {[%clk 0:01:02]}  Ka4 {[%clk 0:00:50]} 112. Bg7 {[%clk 0:01:02]}  Ka5 {[%clk 0:00:51]} 113. Bf8 {[%clk 0:01:03]}  Ka6 {[%clk 0:00:51]} 114. Bg7 {[%clk 0:01:04]}  Ka7 {[%clk 0:00:52]} 115. Bf8 {[%clk 0:01:05]}  Ka8 {[%clk 0:00:52]} 116. Bg7 {[%clk 0:01:06]}  Kb8 {[%clk 0:00:53]} 117. Bd4 {[%clk 0:01:07]}  Kc8 {[%clk 0:00:53]} 118. Bg7 {[%clk 0:01:08]}  Kd8 {[%clk 0:00:53]} 119. Bf6+ {[%clk 0:01:08]}  Ke8 {[%clk 0:00:54]} 120. Bg7 {[%clk 0:01:09]}  Kf7 {[%clk 0:00:54]} 121. Kd4 {[%clk 0:01:10]}  Kg6 {[%clk 0:00:54]} 122. Kc3 {[%clk 0:01:11]}  Kg5 {[%clk 0:00:54]} 123. Kd4 {[%clk 0:01:11]}  Kg4 {[%clk 0:00:55]} 124. Kc3 {[%clk 0:01:12]}  Kg3 {[%clk 0:00:55]} 125. Kd4 {[%clk 0:01:13]}  c3 {[%clk 0:00:55]} 126. Kxc3 {[%clk 0:01:14]}  Kg2 {[%clk 0:00:56]} 127. Kd4 {[%clk 0:01:14]}  Kf2 {[%clk 0:00:56]} 128. Ke5 {[%clk 0:01:15]}  Ba2 {[%clk 0:00:56]} 129. Kf6 {[%clk 0:01:16]}  Bb1 {[%clk 0:00:57]} 130. Bf8 {[%clk 0:01:16]}  Ke2 {[%clk 0:00:57]} 131. Kg7 {[%clk 0:01:17]}  Kd1 {[%clk 0:00:57]} 132. Be7 {[%clk 0:01:18]}  Bd3 {[%clk 0:00:56]} 133. Bd8 {[%clk 0:01:17]}  Kc2 {[%clk 0:00:56]} 134. Kf6 {[%clk 0:01:18]}  Kb2 {[%clk 0:00:57]} 135. Ke5 {[%clk 0:01:18]}  Bb1 {[%clk 0:00:56]} 136. Kd4 {[%clk 0:01:19]}  Kb3 {[%clk 0:00:56]} 137. Bf6 {[%clk 0:01:19]}  Kb4 {[%clk 0:00:57]} 138. Kd5 {[%clk 0:01:20]}  Kb5 {[%clk 0:00:57]} 139. Be7 {[%clk 0:01:19]}  Kb6 {[%clk 0:00:58]} 140. Bc5+ {[%clk 0:01:19]}  Kb7 {[%clk 0:00:58]} 141. Bd4 {[%clk 0:01:20]}  Kb8 {[%clk 0:00:58]} 142. Kd6 {[%clk 0:01:21]}  Kc8 {[%clk 0:00:58]} 143. Be5 {[%clk 0:01:21]}  Kd8 {[%clk 0:00:58]} 144. Ke6 {[%clk 0:01:21]}  Ke8 {[%clk 0:00:59]} 145. Kf6 {[%clk 0:01:22]}  Kf8 {[%clk 0:00:59]} 146. Bd6+ {[%clk 0:01:22]}  Kg8 {[%clk 0:00:59]} 147. Be7 {[%clk 0:01:23]}  Kh8 {[%clk 0:00:59]} 148. Kf7 {[%clk 0:01:22]}  Ba2+ {[%clk 0:00:58]} 149. Kf8 {[%clk 0:01:23]} 1-0


[Site "https://www.chess.com"]

[Event "Titled Tuesday Blitz May 10 Late 2022"]
[White "Diaz, Fernando"]
[Black "Petrovic, Aleksa"]
[WhiteFideId "3701255"]
[BlackFideId "967629"]
[WhiteElo "1934"]
[BlackElo "2144"]
[Result "1-0"]
[Round "02"]
[TimeControl "180+1"]
[Date "2022.05.11"]
[WhiteClock "0:00:58"]
[BlackClock "0:00:03"]

1. e4 {[%clk 0:02:37]}  e6 {[%clk 0:02:57]} 2. d4 {[%clk 0:02:36]}  d5 {[%clk 0:02:57]} 3. e5 {[%clk 0:02:36]}  c5 {[%clk 0:02:57]} 4. c3 {[%clk 0:02:37]}  Ne7 {[%clk 0:02:57]} 5. Nf3 {[%clk 0:02:38]}  Nec6 {[%clk 0:02:57]} 6. a3 {[%clk 0:02:39]}  a5 {[%clk 0:02:57]} 7. Bd3 {[%clk 0:02:38]}  b6 {[%clk 0:02:56]} 8. Qe2 {[%clk 0:02:36]}  Ba6 {[%clk 0:02:56]} 9. Bxa6 {[%clk 0:02:35]}  Rxa6 {[%clk 0:02:57]} 10. O-O {[%clk 0:02:35]}  c4 {[%clk 0:02:56]} 11. Nbd2 {[%clk 0:02:34]}  b5 {[%clk 0:02:55]} 12. b3 {[%clk 0:02:30]}  cxb3 {[%clk 0:02:28]} 13. Nxb3 {[%clk 0:02:30]}  a4 {[%clk 0:02:24]} 14. Nbd2 {[%clk 0:02:29]}  Qa5 {[%clk 0:02:16]} 15. Rb1 {[%clk 0:02:29]}  Na7 {[%clk 0:02:12]} 16. c4 {[%clk 0:02:28]}  dxc4 {[%clk 0:01:27]} 17. Nxc4 {[%clk 0:02:27]}  Qd8 {[%clk 0:01:22]} 18. Ne3 {[%clk 0:02:15]}  Nbc6 {[%clk 0:00:48]} 19. Rd1 {[%clk 0:02:10]}  Ne7 {[%clk 0:00:46]} 20. Nd2 {[%clk 0:01:51]}  Nd5 {[%clk 0:00:42]} 21. Ne4 {[%clk 0:01:48]}  Be7 {[%clk 0:00:38]} 22. Nxd5 {[%clk 0:01:43]}  Qxd5 {[%clk 0:00:35]} 23. Qg4 {[%clk 0:01:42]}  g6 {[%clk 0:00:22]} 24. Bh6 {[%clk 0:01:41]}  Nc6 {[%clk 0:00:20]} 25. Bg7 {[%clk 0:01:40]}  h5 {[%clk 0:00:16]} 26. Qf4 {[%clk 0:01:29]}  Rg8 {[%clk 0:00:15]} 27. Bf6 {[%clk 0:01:29]}  Bxa3 {[%clk 0:00:10]} 28. Bh4 {[%clk 0:01:17]}  Be7 {[%clk 0:00:09]} 29. Bxe7 {[%clk 0:01:14]}  Kxe7 {[%clk 0:00:10]} 30. Qf6+ {[%clk 0:01:14]}  Kf8 {[%clk 0:00:04]} 31. Nd6 {[%clk 0:01:11]}  Ra7 {[%clk 0:00:05]} 32. Rxb5 {[%clk 0:01:10]}  Qa2 {[%clk 0:00:05]} 33. Rc1 {[%clk 0:01:00]}  Qd2 {[%clk 0:00:04]} 34. Rb8+ {[%clk 0:00:58]}  Nxb8 {[%clk 0:00:03]} 35. Rc8# {[%clk 0:00:58]} 1-0


[Site "https://www.chess.com"]